bitfinex/quotes_BTCUSD_20240811
["timestamp","ask_amount","ask_price","bid_price","bid_amount"]
[1723378540455,0.002,60384.0,60383.0,0.347779]
[1723378540658,0.002,60385.0,60384.0,0.347773]
[1723378540874,0.002,60385.0,60384.0,0.6399125]
[1723378541294,0.002,60385.0,60384.0,0.8717615]
[1723378541586,0.002,60388.0,60384.0,0.1976905]
[1723378541856,0.002,60390.0,60389.0,0.347745]
[1723378542141,0.001,60393.0,60382.0,0.003]
[1723378542352,0.001,60393.0,60392.0,0.820345]
[1723378542558,0.001,60393.0,60392.0,1.44779592]
[1723378542775,0.002,60408.0,60407.0,0.347641]
[1723378543005,0.002,60408.0,60407.0,0.9835271]
[1723378543216,0.49307874,60420.0,60407.0,0.44887902]
[1723378543421,0.10184646,60422.0,60407.0,0.44887902]
[1723378543422,0.08184646,60422.0,60416.0,0.347589]
[1723378543624,0.01,60421.0,60416.0,0.253463]
[1723378543835,0.01,60421.0,60407.0,0.1474641]
[1723378543836,0.01,60415.0,60408.0,0.1376]
[1723378544082,4e-05,60417.0,60416.0,0.347589]
[1723378544503,4e-05,60417.0,60416.0,0.485189]
[1723378544751,0.00204,60417.0,60416.0,0.485189]
[1723378544971,0.00204,60417.0,60416.0,0.716915]
[1723378545438,0.00204,60417.0,60416.0,0.347589]
[1723378545700,0.00204,60417.0,60416.0,0.579315]
[1723378545924,4e-05,60417.0,60416.0,0.579315]
[1723378546355,0.01404,60417.0,60416.0,0.74412992]
[1723378546578,4e-05,60417.0,60416.0,1.07244311]
[1723378546783,0.000833,60423.0,60422.0,0.579257]
[1723378547628,0.000833,60423.0,60422.0,0.81096]
[1723378547839,0.000833,60423.0,60422.0,0.9152277]
[1723378548040,0.000833,60423.0,60422.0,1.10204262]
[1723378548408,0.000833,60423.0,60422.0,1.35234262]
[1723378548614,0.000833,60423.0,60422.0,1.58404562]
[1723378549551,0.000833,60423.0,60422.0,1.35234262]
[1723378549753,0.000833,60423.0,60422.0,1.1655277]
[1723378549958,0.000833,60423.0,60422.0,0.9338247]
[1723378550336,0.000833,60423.0,60422.0,0.9478247]
[1723378550564,0.000833,60423.0,60422.0,0.9338247]
[1723378550736,0.000833,60423.0,60422.0,0.9288247]
[1723378551263,0.000833,60423.0,60422.0,1.32634262]
[1723378551461,0.000833,60423.0,60422.0,1.34734262]
[1723378551662,0.000833,60423.0,60422.0,1.57904562]
[1723378552445,0.0001,60429.0,60428.0,1.29286]
[1723378552719,0.0001,60429.0,60428.0,1.60896092]
[1723378553626,0.0011,60429.0,60428.0,1.62196092]
[1723378554294,0.0021,60449.0,60448.0,0.810614]
[1723378554295,0.0001,60449.0,60448.0,0.810614]
[1723378554501,0.0001,60449.0,60448.0,0.57901]
[1723378554718,0.0001,60449.0,60448.0,0.661941]
[1723378555554,0.02,60464.0,60457.0,0.347353]
[1723378555778,0.02,60463.0,60457.0,0.115784]
[1723378555983,0.02,60465.0,60457.0,0.578922]
[1723378556410,0.08184646,60467.0,60457.0,0.578922]
[1723378556615,0.08184646,60467.0,60457.0,0.484953]
[1723378556616,0.02,60466.0,60457.0,0.484953]
[1723378556823,0.02,60466.0,60457.0,0.716522]
[1723378557066,0.08184646,60467.0,60466.0,0.115767]
[1723378557262,0.08184646,60467.0,60466.0,0.578837]
[1723378557685,0.08184646,60467.0,60458.0,0.1127]
[1723378557910,0.08184646,60459.0,60458.0,0.460047]
[1723378558151,0.08184646,60459.0,60458.0,0.1127]
[1723378558383,0.08184646,60459.0,60458.0,0.32108254]
[1723378558594,0.08184646,60459.0,60458.0,0.20530054]
[1723378559056,0.08184646,60467.0,60460.0,0.231556]
[1723378559339,0.08184646,60467.0,60463.0,0.115772]
[1723378559577,0.08184646,60467.0,60466.0,0.001]
[1723378559821,0.08184646,60467.0,60458.0,0.09260054]
[1723378559822,0.87006707,60467.0,60458.0,0.09260054]
[1723378560084,0.87006707,60467.0,60443.0,0.231621]
[1723378560085,0.02,60457.0,60445.0,0.2503]
[1723378560288,0.31340946,60459.0,60441.0,0.49107874]
[1723378560289,0.08184646,60446.0,60441.0,0.49107874]
[1723378560517,0.08184646,60446.0,60445.0,0.115807]
[1723378560994,0.02,60460.0,60443.0,0.00330832]
[1723378561234,0.19394646,60467.0,60446.0,0.1376]
[1723378561235,0.02,60463.0,60446.0,0.1376]
[1723378561459,0.08184646,60458.0,60457.0,0.347353]
[1723378561730,0.39930539,60469.0,60457.0,0.47200732]
[1723378561731,0.0001,60469.0,60457.0,0.47200732]
[1723378561953,0.08184646,60465.0,60458.0,0.231565]
[1723378562190,0.0001,60469.0,60457.0,0.3081924]
[1723378562191,0.0001,60469.0,60459.0,0.23156]
[1723378562414,0.08184646,60467.0,60466.0,0.115766]
[1723378562624,0.08184646,60467.0,60466.0,0.3820318]
[1723378562854,0.08184646,60467.0,60466.0,0.0347308]
[1723378563085,0.08184646,60467.0,60466.0,0.3820328]
[1723378563295,0.0001,60469.0,60466.0,0.2662658]
[1723378563506,0.08184646,60467.0,60466.0,0.0347308]
[1723378563724,0.08384646,60467.0,60466.0,0.001]
[1723378563923,0.08384646,60467.0,60457.0,0.3081924]
[1723378563924,0.08184646,60467.0,60460.0,0.231557]
[1723378564133,0.08184646,60467.0,60462.0,0.23155]
[1723378564352,0.08184646,60467.0,60466.0,0.115767]
[1723378564353,0.08384646,60467.0,60466.0,0.115767]
[1723378564559,0.08184646,60467.0,60463.0,0.0463107]
[1723378564778,0.08184646,60467.0,60463.0,0.115772]
[1723378564979,0.08184646,60467.0,60457.0,0.3081924]
[1723378564980,0.08184646,60467.0,60465.0,0.115768]
[1723378565192,0.08184646,60467.0,60466.0,0.115767]
[1723378565388,0.08184646,60467.0,60465.0,0.115768]
[1723378565817,0.08184646,60467.0,60464.0,0.11577]
[1723378566024,0.02,60466.0,60465.0,0.057887]
[1723378566238,0.08384646,60467.0,60457.0,0.3081924]
[1723378566239,0.08184646,60467.0,60460.0,0.231557]
[1723378566444,0.08184646,60467.0,60458.0,0.231564]
[1723378566714,0.08384646,60467.0,60459.0,0.231559]
[1723378566966,0.08384646,60467.0,60466.0,0.115767]
[1723378567173,0.08384646,60467.0,60466.0,0.0347304]
[1723378567597,0.08384646,60467.0,60458.0,0.231564]
[1723378567798,0.08184646,60460.0,60459.0,0.11578]
[1723378568000,0.08184646,60460.0,60459.0,0.347341]
[1723378568219,0.08184646,60460.0,60457.0,0.0578924]
[1723378568431,0.08184646,60460.0,60459.0,0.11578]
[1723378568632,0.08184646,60460.0,60459.0,0.17946294]
[1723378568888,0.08184646,60460.0,60459.0,0.41102394]
[1723378569307,0.08184646,60460.0,60459.0,0.06368294]
[1723378569699,0.08184646,60460.0,60452.0,0.2601]
[1723378569842,0.08184646,60460.0,60454.0,0.23158]
[1723378570043,0.08184646,60460.0,60459.0,0.348341]
[1723378570243,0.08184646,60460.0,60459.0,0.11678]
[1723378570847,0.08184646,60460.0,60459.0,0.348341]
[1723378571045,0.08184646,60467.0,60460.0,0.231558]
[1723378571243,0.08184646,60467.0,60461.0,0.00330739]
[1723378571448,0.0001,60469.0,60468.0,0.115763]
[1723378572093,0.0001,60469.0,60468.0,0.35059716]
[1723378572348,0.0001,60469.0,60468.0,0.11907016]
[1723378572555,0.0001,60469.0,60468.0,0.17728398]
[1723378572917,0.0001,60469.0,60468.0,0.05821382]
[1723378573154,0.0001,60469.0,60468.0,0.17397682]
[1723378573567,0.0001,60469.0,60468.0,0.05821382]
[1723378573779,0.0041,60469.0,60468.0,0.116763]
[1723378574243,0.0001,60469.0,60468.0,0.115763]
[1723378574488,0.0041,60469.0,60462.0,0.14]
[1723378574719,0.08184646,60467.0,60464.0,0.115771]
[1723378574955,0.08184646,60467.0,60465.0,0.0255771]
[1723378575154,0.08184646,60467.0,60465.0,0.1413451]
[1723378575356,0.08184646,60467.0,60466.0,0.115767]
[1723378575534,0.07684646,60467.0,60465.0,0.0255771]
[1723378577444,0.07884646,60467.0,60465.0,0.0255771]
[1723378577647,0.07684646,60467.0,60466.0,0.03971221]
[1723378578460,0.115767,60466.0,60465.0,0.0255771]
[1723378578702,0.115774,60463.0,60457.0,0.14]
[1723378578935,0.07884646,60467.0,60457.0,0.14]
[1723378579402,0.231535,60466.0,60457.0,0.14]
[1723378579636,0.115771,60465.0,60457.0,0.14]
[1723378579870,0.115771,60465.0,60457.0,0.255784]
[1723378580104,0.115771,60464.0,60458.0,0.0718952]
[1723378580331,0.23154,60465.0,60458.0,0.0718952]
[1723378580542,0.347341,60459.0,60458.0,0.0718952]
[1723378580749,0.231561,60459.0,60452.0,0.2601]
[1723378580968,0.115787,60456.0,60452.0,0.2601]
[1723378581171,0.231561,60459.0,60452.0,0.2601]
[1723378581172,0.115784,60458.0,60452.0,0.2601]
[1723378581384,0.08184646,60453.0,60445.0,0.140913]
[1723378581594,0.231589,60452.0,60445.0,0.140913]
[1723378581794,0.231591,60452.0,60445.0,0.140913]
[1723378582000,0.42926246,60446.0,60445.0,0.000913]
[1723378582210,0.7392069,60446.0,60445.0,0.000913]
[1723378582425,0.92415051,60446.0,60445.0,0.000913]
[1723378582638,1.52477209,60446.0,60445.0,0.000913]
[1723378583052,1.62477209,60446.0,60445.0,0.000913]
[1723378583671,1.40016109,60446.0,60445.0,0.001913]
[1723378583886,1.16008823,60446.0,60445.0,0.001913]
[1723378584115,1.40668775,60446.0,60445.0,0.001913]
[1723378584309,1.26928528,60446.0,60445.0,0.001913]
[1723378584515,0.007,60446.0,60445.0,0.11772]
[1723378584753,0.007,60446.0,60445.0,0.90951692]
[1723378584974,0.007,60446.0,60445.0,1.14113192]
[1723378585687,0.007,60446.0,60445.0,1.16413192]
[1723378586165,0.007,60446.0,60445.0,1.5059938]
[1723378586398,0.00083,60467.0,60453.0,0.1511]
[1723378586609,0.00083,60467.0,60454.0,0.21192492]
[1723378586822,0.00083,60467.0,60459.0,0.231561]
[1723378587029,0.00083,60467.0,60463.0,0.115772]
[1723378587248,0.00083,60467.0,60466.0,0.115767]
[1723378587457,0.00083,60467.0,60464.0,0.1411]
[1723378587675,0.00083,60467.0,60466.0,0.115767]
[1723378588098,0.00883,60467.0,60466.0,0.35060909]
[1723378588309,0.00083,60467.0,60466.0,0.35060909]
[1723378588525,0.00083,60467.0,60466.0,1.00049401]
[1723378588739,0.00083,60467.0,60466.0,0.99718692]
[1723378588953,0.00083,60467.0,60466.0,1.13170706]
[1723378589774,0.00183,60467.0,60466.0,1.14170706]
[1723378589985,0.00083,60467.0,60466.0,1.37324206]
[1723378590195,0.00083,60467.0,60466.0,1.51434206]
[1723378590406,0.00083,60467.0,60466.0,1.50634206]
[1723378590817,0.00083,60467.0,60466.0,1.51634206]
[1723378591261,0.00083,60467.0,60466.0,1.73314206]
[1723378591464,0.00083,60467.0,60466.0,1.72314206]
[1723378591672,0.00083,60467.0,60466.0,1.78664201]
[1723378591889,0.00832,60473.0,60472.0,0.810292]
[1723378592102,0.00832,60473.0,60472.0,1.47318922]
[1723378592319,0.00832,60473.0,60472.0,1.70270122]
[1723378593006,0.00832,60473.0,60472.0,1.46118922]
[1723378593230,0.00832,60473.0,60472.0,1.36118922]
[1723378593441,0.00832,60473.0,60472.0,0.63826522]
[1723378593660,0.00832,60473.0,60472.0,0.86977722]
[1723378593942,0.00832,60473.0,60472.0,0.1041823]
[1723378594183,0.00832,60473.0,60472.0,0.009]
[1723378594427,0.00832,60473.0,60472.0,0.115756]
[1723378594681,0.00832,60473.0,60472.0,0.52008292]
[1723378594956,0.00832,60473.0,60472.0,0.89269492]
[1723378595190,0.00832,60473.0,60472.0,0.75159492]
[1723378595428,0.00832,60473.0,60472.0,0.86401651]
[1723378595675,0.00832,60473.0,60472.0,1.11852851]
[1723378596125,0.00832,60473.0,60472.0,1.36942851]
[1723378596346,0.01032,60473.0,60472.0,1.36942851]
[1723378596545,0.01032,60473.0,60472.0,1.60094051]
[1723378596758,0.00832,60473.0,60472.0,1.70094051]
[1723378597216,0.00832,60473.0,60472.0,1.70594051]
[1723378597457,0.00832,60473.0,60472.0,1.70094051]
[1723378597676,0.00832,60473.0,60472.0,1.71294051]
[1723378598136,0.00832,60473.0,60472.0,1.70094051]
[1723378599316,0.00632,60473.0,60472.0,1.71494051]
[1723378599739,0.00632,60473.0,60472.0,1.70094051]
[1723378600178,0.00632,60473.0,60472.0,1.72394051]
[1723378600424,0.00632,60473.0,60472.0,1.70094051]
[1723378600638,0.00632,60473.0,60472.0,1.46942851]
[1723378600854,0.00632,60473.0,60472.0,1.48342851]
[1723378603933,0.00632,60473.0,60472.0,1.71494051]
[1723378604394,0.00632,60473.0,60472.0,1.72494051]
[1723378606564,0.00632,60473.0,60472.0,1.71494051]
[1723378606812,0.00632,60473.0,60472.0,1.94645251]
[1723378607025,0.00832,60477.0,60476.0,1.041732]
[1723378607237,1e-08,60477.0,60476.0,1.62818156]
[1723378607454,1e-08,60477.0,60476.0,1.85967756]
[1723378607864,1e-08,60477.0,60476.0,1.86967756]
[1723378608089,0.000832,60479.0,60478.0,1.0417]
[1723378608311,0.000832,60479.0,60478.0,0.99702592]
[1723378608525,0.000832,60479.0,60478.0,1.23999198]
[1723378608942,0.000832,60479.0,60478.0,1.55368098]
[1723378609603,0.000832,60479.0,60478.0,1.13999198]
[1723378609823,0.000832,60479.0,60478.0,1.37148098]
[1723378610060,0.000832,60479.0,60478.0,1.47148098]
[1723378610788,0.000832,60479.0,60478.0,1.24999198]
[1723378611009,0.000832,60479.0,60478.0,1.14999198]
[1723378611247,0.000832,60479.0,60478.0,0.91850298]
[1723378612088,0.000832,60479.0,60478.0,0.90850298]
[1723378612506,0.000832,60479.0,60478.0,0.91950298]
[1723378612710,0.000832,60479.0,60478.0,0.90850298]
[1723378612925,0.000832,60479.0,60478.0,0.91850298]
[1723378613356,0.000832,60479.0,60478.0,0.90850298]
[1723378613566,0.000832,60479.0,60478.0,1.25099198]
[1723378613782,0.000832,60479.0,60478.0,1.31769198]
[1723378613993,0.000832,60479.0,60478.0,1.67169863]
[1723378614203,0.000832,60479.0,60478.0,1.45020963]
[1723378614880,0.000832,60479.0,60478.0,1.68169863]
[1723378615118,0.000832,60479.0,60478.0,1.44020963]
[1723378615348,0.000832,60479.0,60478.0,1.45020963]
[1723378615583,0.000832,60479.0,60478.0,1.68211246]
[1723378616035,0.000832,60479.0,60478.0,1.69611246]
[1723378616245,0.000832,60479.0,60478.0,1.67211246]
[1723378616452,0.000832,60479.0,60478.0,1.70475696]
[1723378616666,0.000832,60479.0,60478.0,1.82477064]
[1723378616891,0.000832,60479.0,60478.0,1.83477064]
[1723378617127,0.000832,60479.0,60478.0,1.71875696]
[1723378617372,0.000832,60479.0,60478.0,1.82487787]
[1723378618554,0.000832,60479.0,60478.0,1.81087787]
[1723378618781,0.000832,60479.0,60478.0,1.83687787]
[1723378619015,0.000832,60479.0,60478.0,2.06836687]
[1723378619242,0.000832,60479.0,60478.0,1.83487787]
[1723378619994,0.000832,60479.0,60478.0,1.82087787]
[1723378620222,0.000832,60479.0,60478.0,1.64911246]
[1723378620459,0.000832,60479.0,60478.0,1.65911246]
[1723378620686,0.000832,60479.0,60478.0,1.67311246]
[1723378620916,0.000832,60479.0,60478.0,1.18272346]
[1723378622164,0.000832,60479.0,60478.0,0.93723446]
[1723378622392,0.000832,60479.0,60478.0,0.89950298]
[1723378622623,0.000832,60479.0,60478.0,0.88550298]
[1723378623114,0.000832,60479.0,60478.0,0.89950298]
[1723378623360,0.000832,60479.0,60478.0,0.88550298]
[1723378623605,0.000832,60479.0,60478.0,1.15399198]
[1723378624270,0.000832,60479.0,60478.0,1.16399198]
[1723378624487,0.000832,60479.0,60478.0,1.39750314]
[1723378624693,0.000832,60479.0,60478.0,1.61899214]
[1723378624915,0.000832,60479.0,60478.0,1.40993811]
[1723378625130,0.000832,60479.0,60478.0,1.30580314]
[1723378625551,0.000832,60479.0,60478.0,1.29148263]
[1723378625763,0.000832,60479.0,60478.0,1.30548263]
[1723378625995,0.00832,60485.0,60483.0,0.231469]
[1723378626221,0.00832,60485.0,60483.0,0.90879076]
[1723378626485,0.00832,60485.0,60483.0,1.49472876]
[1723378626991,0.00832,60485.0,60483.0,1.51702224]
[1723378627482,0.00832,60485.0,60483.0,1.52702224]
[1723378627719,0.00832,60485.0,60483.0,1.74849124]
[1723378627954,1e-08,60485.0,60483.0,0.89098039]
[1723378628198,0.000832,60490.0,60489.0,0.34717]
[1723378628433,0.000832,60490.0,60489.0,1.04765776]
[1723378628656,0.000832,60490.0,60489.0,1.02536428]
[1723378628872,0.000832,60490.0,60489.0,0.97387892]
[1723378629296,0.000832,60490.0,60489.0,0.74243192]
[1723378629500,0.076932,60490.0,60489.0,0.2220217]
[1723378629736,0.076932,60490.0,60489.0,0.1142987]
[1723378629936,0.076932,60490.0,60489.0,0.008]
[1723378630147,0.076932,60490.0,60489.0,0.115723]
[1723378630349,0.076932,60490.0,60489.0,0.006]
[1723378630551,0.076932,60490.0,60487.0,0.115726]
[1723378630759,0.076932,60490.0,60488.0,0.115724]
[1723378630965,0.504496,60490.0,60489.0,0.0588648]
[1723378631172,1.20529899,60490.0,60489.0,0.001]
[1723378631376,1.41974199,60490.0,60489.0,0.001]
[1723378631581,1.55704106,60490.0,60489.0,0.001]
[1723378631784,1.56687191,60490.0,60489.0,0.001]
[1723378631990,1.60580503,60490.0,60489.0,0.001]
[1723378632411,1.42016795,60490.0,60489.0,0.001]
[1723378632621,1.48708208,60490.0,60489.0,0.001]
[1723378632832,0.72161757,60490.0,60489.0,0.001]
[1723378633056,0.72161757,60490.0,60489.0,0.002]
[1723378633057,0.92171351,60490.0,60489.0,0.002]
[1723378633273,0.69027051,60490.0,60489.0,0.002]
[1723378633495,0.69027051,60490.0,60478.0,0.231489]
[1723378633496,0.02,60484.0,60478.0,0.231489]
[1723378633707,0.08184646,60479.0,60478.0,0.347233]
[1723378633918,0.02,60486.0,60478.0,0.39530392]
[1723378634132,0.0604,60490.0,60484.0,0.347199]
[1723378634133,0.08184646,60485.0,60484.0,0.347199]
[1723378634337,0.08184646,60485.0,60484.0,0.578665]
[1723378634542,0.08184646,60485.0,60484.0,0.65521299]
[1723378634747,0.08184646,60485.0,60484.0,0.19228099]
[1723378634952,0.21757746,60485.0,60484.0,0.07654799]
[1723378635159,0.21757746,60485.0,60477.0,0.000913]
[1723378635160,0.0761,60479.0,60477.0,0.000913]
[1723378635370,0.0761,60479.0,60478.0,0.115744]
[1723378635570,0.09184646,60485.0,60484.0,0.115733]
[1723378635776,0.10184646,60485.0,60484.0,0.115733]
[1723378636213,0.17794646,60485.0,60484.0,0.116733]
[1723378636424,0.17794646,60485.0,60484.0,0.0579686]
[1723378636632,0.24659382,60485.0,60477.0,0.000913]
[1723378636836,0.24659382,60485.0,60481.0,0.115737]
[1723378636837,0.02,60483.0,60481.0,0.115737]
[1723378637047,0.02,60483.0,60477.0,0.232405]
[1723378637048,0.02,60483.0,60482.0,0.115736]
[1723378637274,0.02,60483.0,60477.0,0.000913]
[1723378637275,0.02,60483.0,60480.0,0.115739]
[1723378637483,0.15794646,60485.0,60477.0,0.000913]
[1723378637484,0.02,60478.0,60477.0,0.000913]
[1723378637692,0.0961,60478.0,60477.0,0.000913]
[1723378638114,0.211844,60478.0,60477.0,0.000913]
[1723378638328,0.0961,60478.0,60477.0,0.000913]
[1723378638557,0.17794646,60478.0,60477.0,0.000913]
[1723378638791,0.17794646,60478.0,60477.0,0.0126707]
[1723378638792,0.29369046,60478.0,60477.0,0.0126707]
[1723378639000,0.29369046,60478.0,60477.0,0.000913]
[1723378639412,0.81706846,60478.0,60477.0,0.000913]
[1723378639633,0.88572764,60478.0,60477.0,0.000913]
[1723378640267,0.65423864,60478.0,60477.0,0.001913]
[1723378640472,0.65423864,60478.0,60477.0,0.000913]
[1723378641084,0.42274964,60478.0,60477.0,0.000913]
[1723378641494,0.65423864,60478.0,60477.0,0.000913]
[1723378641700,0.35409046,60478.0,60477.0,0.000913]
[1723378641910,0.65424112,60478.0,60477.0,0.001913]
[1723378642115,0.58557946,60478.0,60477.0,0.000913]
[1723378642532,0.65424171,60478.0,60477.0,0.001913]
[1723378643164,0.65424159,60478.0,60477.0,0.001913]
[1723378643368,0.1565,60478.0,60477.0,0.001913]
[1723378643628,0.0961,60478.0,60477.0,0.001913]
[1723378643794,0.0961,60478.0,60477.0,0.0160705]
[1723378643992,0.0961,60478.0,60477.0,0.001913]
[1723378644170,0.211844,60478.0,60477.0,0.001913]
[1723378644375,0.0961,60478.0,60477.0,0.001913]
[1723378644987,0.211844,60478.0,60477.0,0.001913]
[1723378645817,0.443333,60478.0,60477.0,0.001913]
[1723378646057,0.211844,60478.0,60477.0,0.001913]
[1723378646279,0.443333,60478.0,60477.0,0.001913]
[1723378647638,0.674822,60478.0,60477.0,0.001913]
[1723378647870,0.443333,60478.0,60477.0,0.001913]
[1723378648103,0.211844,60478.0,60477.0,0.001913]
[1723378648322,0.0961,60478.0,60477.0,0.001913]
[1723378648562,0.0761,60478.0,60477.0,0.001913]
[1723378648782,0.211844,60478.0,60477.0,0.001913]
[1723378649007,0.0961,60478.0,60477.0,0.001913]
[1723378649677,0.01,60480.0,60477.0,0.117659]
[1723378649914,0.01,60480.0,60478.0,0.0150725]
[1723378649915,0.02,60480.0,60478.0,0.0150725]
[1723378650144,0.0831,60483.0,60478.0,0.0150725]
[1723378650145,0.02,60479.0,60478.0,0.0150725]
[1723378650349,0.01978907,60481.0,60478.0,0.0117659]
[1723378650541,0.0831,60483.0,60477.0,0.001913]
[1723378650542,0.01978907,60482.0,60477.0,0.001913]
[1723378650789,0.08184646,60478.0,60477.0,0.001913]
[1723378651349,0.08184646,60478.0,60477.0,0.117659]
[1723378651681,0.08184646,60478.0,60477.0,0.140659]
[1723378651908,0.08184646,60478.0,60477.0,0.139659]
[1723378652141,0.08184646,60478.0,60477.0,0.2060964]
[1723378652651,0.08184646,60478.0,60477.0,0.6690804]
[1723378652890,0.08184646,60478.0,60477.0,0.6700804]
[1723378653124,0.08184646,60478.0,60477.0,0.4385884]
[1723378653554,0.08184646,60478.0,60477.0,0.4375884]
[1723378654001,0.08184646,60478.0,60477.0,0.0903504]
[1723378654246,0.53196853,60478.0,60477.0,0.000913]
[1723378654477,0.76345753,60478.0,60477.0,0.000913]
[1723378654948,0.76349753,60478.0,60477.0,0.000913]
[1723378655178,1.12874795,60478.0,60477.0,0.000913]
[1723378655406,1.26733072,60478.0,60477.0,0.000913]
[1723378655858,1.4046685,60478.0,60477.0,0.000913]
[1723378656337,1.26733072,60478.0,60477.0,0.000913]
[1723378656584,1.26733072,60478.0,60477.0,0.001913]
[1723378656808,1.03584172,60478.0,60477.0,0.001913]
[1723378658202,1.17317483,60478.0,60477.0,0.001913]
[1723378659377,0.94168583,60478.0,60477.0,0.001913]
[1723378659796,0.56199683,60478.0,60477.0,0.001913]
[1723378660004,0.44625283,60478.0,60477.0,0.001913]
[1723378660241,0.44625283,60478.0,60477.0,0.117659]
[1723378660242,0.15054788,60478.0,60477.0,0.117659]
[1723378660455,0.15054788,60478.0,60477.0,0.1526669]
[1723378660456,0.06870142,60478.0,60477.0,0.1526669]
[1723378660661,4e-05,60478.0,60477.0,0.222059]
[1723378660871,4e-05,60478.0,60477.0,0.453551]
[1723378661710,4e-05,60478.0,60477.0,0.84885792]
[1723378661927,4e-05,60478.0,60477.0,0.93383501]
[1723378662431,4e-05,60478.0,60477.0,1.16532701]
[1723378662671,4e-05,60478.0,60477.0,0.93383501]
[1723378662905,4e-05,60478.0,60477.0,0.27370501]
[1723378663139,4e-05,60478.0,60477.0,0.001913]
[1723378663140,0.13557307,60478.0,60477.0,0.001913]
[1723378663374,0.88274737,60478.0,60477.0,0.000913]
[1723378663793,0.88274737,60478.0,60477.0,0.006913]
[1723378664062,1.0200753,60478.0,60477.0,0.000913]
[1723378664309,1.0210753,60478.0,60477.0,0.001913]
[1723378664789,1.0200753,60478.0,60477.0,0.000913]
[1723378665147,1.19472613,60478.0,60477.0,0.001913]
[1723378665421,1.73262377,60478.0,60477.0,0.001913]
[1723378665715,1.91597046,60478.0,60477.0,0.001913]
[1723378665972,1.91595276,60478.0,60477.0,0.001913]
[1723378666235,1.85865195,60478.0,60477.0,0.001913]
[1723378666463,1.93093887,60478.0,60477.0,0.000913]
[1723378666756,1.93093887,60478.0,60477.0,0.001913]
[1723378666757,1.94193887,60478.0,60477.0,0.001913]
[1723378666994,1.91495276,60478.0,60477.0,0.000913]
[1723378667242,1.98822373,60478.0,60477.0,0.000913]
[1723378667477,1.92595276,60478.0,60477.0,0.001913]
[1723378667758,2.05375429,60478.0,60477.0,0.001913]
[1723378668056,1.92620507,60478.0,60477.0,0.001913]
[1723378668285,1.93117162,60478.0,60477.0,0.000913]
[1723378668762,1.93117132,60478.0,60477.0,0.000913]
[1723378669181,1.93117095,60478.0,60477.0,0.000913]
[1723378669626,1.94217095,60478.0,60477.0,0.001913]
[1723378669844,1.70508761,60478.0,60477.0,0.001913]
[1723378670055,1.45822474,60478.0,60477.0,0.001913]
[1723378670263,1.37320614,60478.0,60477.0,0.001913]
[1723378670475,1.36338184,60478.0,60477.0,0.001913]
[1723378670719,1.37320614,60478.0,60477.0,0.001913]
[1723378670931,1.45813014,60478.0,60477.0,0.001913]
[1723378672173,1.50697078,60478.0,60477.0,0.001913]
[1723378672378,1.62194506,60478.0,60477.0,0.001913]
[1723378672588,1.53701847,60478.0,60477.0,0.001913]
[1723378672793,1.74341514,60478.0,60477.0,0.001913]
[1723378673044,1.94170363,60478.0,60477.0,0.001913]
[1723378673298,2.15722675,60478.0,60477.0,0.001913]
[1723378673544,2.27934078,60478.0,60477.0,0.001913]
[1723378673747,2.15722675,60478.0,60477.0,0.001913]
[1723378673943,2.27934367,60478.0,60477.0,0.001913]
[1723378674153,2.2792983,60478.0,60477.0,0.001913]
[1723378674381,2.28484655,60478.0,60477.0,0.001913]
[1723378674631,1.65130185,60478.0,60477.0,0.001913]
[1723378674802,2.15690684,60478.0,60477.0,0.001913]
[1723378675251,3.04269327,60478.0,60477.0,0.001913]
[1723378675461,3.69048605,60478.0,60477.0,1e-06]
[1723378675876,1.43648307,60473.0,60472.0,0.000913]
[1723378676081,2.85141705,60473.0,60472.0,0.000913]
[1723378676296,2.61990905,60473.0,60472.0,0.000913]
[1723378676524,1.77807222,60473.0,60472.0,0.000913]
[1723378676746,0.04889248,60500.0,60495.0,0.00021093]
[1723378676957,0.01978907,60504.0,60495.0,0.231424]
[1723378677170,0.00978907,60499.0,60495.0,0.347136]
[1723378677375,0.01,60506.0,60495.0,0.347136]
[1723378677376,0.00978907,60502.0,60495.0,0.347136]
[1723378677584,0.00978907,60502.0,60495.0,0.370136]
[1723378678018,0.00978907,60500.0,60495.0,0.138712]
[1723378678233,0.00978907,60500.0,60495.0,0.23156992]
[1723378678453,0.00978907,60500.0,60495.0,0.34728192]
[1723378678657,0.00978907,60500.0,60495.0,0.044755]
[1723378678658,0.01910907,60496.0,60495.0,0.044755]
[1723378678864,0.01978907,60494.0,60490.0,0.0774]
[1723378679081,0.10163553,60493.0,60485.0,0.0774]
[1723378679301,0.10163553,60493.0,60484.0,0.231463]
[1723378679302,0.08184646,60486.0,60480.0,0.19314]
[1723378679560,0.08184646,60486.0,60481.0,0.18681492]
[1723378679769,0.01978907,60483.0,60482.0,0.14883749]
[1723378679986,0.00832,60496.0,60495.0,0.57856]
[1723378680202,0.00832,60496.0,60495.0,0.99679892]
[1723378680405,0.00932,60496.0,60495.0,1.15399892]
[1723378680620,0.00932,60496.0,60495.0,0.90957492]
[1723378680866,0.00832,60496.0,60495.0,0.98487257]
[1723378681103,0.00832,60496.0,60495.0,1.21629657]
[1723378681735,0.00932,60496.0,60495.0,1.22929657]
[1723378681947,0.00832,60496.0,60495.0,1.21629657]
[1723378682187,0.00832,60496.0,60495.0,1.22629657]
[1723378682392,0.00832,60496.0,60495.0,1.44772057]
[1723378682839,0.00832,60496.0,60495.0,1.5579315]
[1723378683044,0.00832,60496.0,60495.0,1.5479315]
[1723378683509,0.00932,60496.0,60495.0,1.5806822]
[1723378683710,0.00832,60496.0,60495.0,1.5676822]
[1723378683916,0.00832,60496.0,60495.0,1.5576822]
[1723378684124,0.00932,60496.0,60495.0,1.5706822]
[1723378684968,0.00932,60496.0,60495.0,1.8021062]
[1723378685819,0.00932,60496.0,60495.0,1.8121062]
[1723378686054,0.00932,60496.0,60495.0,1.8021062]
[1723378686268,0.0001,60509.0,60508.0,1.041183]
[1723378686482,0.0001,60509.0,60508.0,1.44269941]
[1723378686700,0.0001,60509.0,60508.0,1.74888434]